[Event "Gibraltar Masters 18th"]
[Site "Gibraltar"]
[Date "2020.01.23"]
[Round "3.13"]
[White "Krysa, Leandro"]
[Black "Kobalia, Mikhail"]
[Result "1-0"]
[ECO "A07"]
[WhiteElo "2522"]
[BlackElo "2609"]
[PlyCount "45"]
[EventDate "2020.01.21"]
[EventType "swiss"]
[EventRounds "10"]
[EventCountry "GGB"]
[SourceTitle "BritBase"]
[Source "John Saunders"]
[SourceDate "2021.06.05"]
[SourceVersion "1"]
[SourceVersionDate "2021.06.05"]
[SourceQuality "1"]
[TimeControl "40/100:0"]
[WhiteClock "1:09:32"]
[BlackClock "0:37:47"]

1. Nf3 {[%emt 0:00:00]} d5 {[%emt 0:00:00]} 2. g3 {[%emt 0:00:00]} Bg4 {
[%emt 0:00:00]} 3. Bg2 {[%emt 0:00:00]} c6 {[%emt 0:00:00]} 4. O-O {[%emt 0:00:
00]} Nd7 {[%emt 0:00:00]} 5. h3 {[%emt 0:00:00]} Bh5 {[%emt 0:00:00]} 6. d4 {
[%emt 0:00:00]} e6 {[%emt 0:00:00]} 7. c4 {[%emt 0:00:00]} Be7 {[%emt 0:00:00]}
8. Nc3 {[%emt 0:00:00]} Ngf6 {[%emt 0:00:00]} 9. Ne5 {[%emt 0:00:00]} Nxe5 {
[%emt 0:00:00]} 10. dxe5 {[%emt 0:00:00]} Nd7 {[%emt 0:00:00]} 11. cxd5 {
[%emt 0:00:00]} cxd5 {[%emt 0:00:00]} 12. Be3 {[%emt 0:00:00]} f6 {[%emt 0:00:
00]} 13. exf6 {[%emt 0:00:00]} Nxf6 {[%emt 0:00:00]} 14. Qb3 {[%emt 0:00:00]}
Qd7 {[%emt 0:00:00]} 15. Rad1 {[%emt 0:00:00]} O-O {[%emt 0:00:00]} 16. Bxd5 {
[%emt 0:00:00]} exd5 {[%emt 0:00:00]} 17. Nxd5 {[%emt 0:00:00]} Kh8 {[%emt 0:
00:00]} 18. Nxf6 {[%emt 0:00:00]} Qxh3 {[%emt 0:00:00]} 19. Nxh5 {[%emt 0:00:
00]} Qxh5 {[%emt 0:00:05]} 20. Qxb7 Bf6 21. Rc1 a5 22. b3 a4 23. bxa4 1-0

[Event "Gibraltar Masters 18th"]
[Site "Gibraltar"]
[Date "2020.01.23"]
[Round "3.14"]
[White "Yilmaz, Mustafa"]
[Black "Kozak, Adam"]
[Result "1/2-1/2"]
[ECO "D46"]
[WhiteElo "2607"]
[BlackElo "2523"]
[PlyCount "67"]
[EventDate "2020.01.21"]
[EventType "swiss"]
[EventRounds "10"]
[EventCountry "GGB"]
[SourceTitle "BritBase"]
[Source "John Saunders"]
[SourceDate "2021.06.05"]
[SourceVersion "1"]
[SourceVersionDate "2021.06.05"]
[SourceQuality "1"]
[TimeControl "40/100:0"]
[WhiteClock "0:25:13"]
[BlackClock "0:44:58"]

1. d4 {[%emt 0:00:00]} Nf6 {[%emt 0:00:00]} 2. c4 {[%emt 0:00:00]} e6 {[%emt 0:
00:00]} 3. Nf3 {[%emt 0:00:00]} d5 {[%emt 0:00:00]} 4. Nc3 {[%emt 0:00:00]}
Nbd7 {[%emt 0:00:00]} 5. Qc2 {[%emt 0:00:00]} c6 {[%emt 0:00:00]} 6. e3 {
[%emt 0:00:00]} Bd6 {[%emt 0:00:00]} 7. Bd3 {[%emt 0:00:00]} O-O {[%emt 0:00:
00]} 8. O-O {[%emt 0:00:00]} dxc4 {[%emt 0:00:00]} 9. Bxc4 {[%emt 0:00:00]} b5
{[%emt 0:00:00]} 10. Be2 {[%emt 0:00:00]} Bb7 {[%emt 0:00:00]} 11. Rd1 {
[%emt 0:00:00]} Qb8 {[%emt 0:00:00]} 12. e4 {[%emt 0:00:00]} e5 {[%emt 0:00:00]
} 13. dxe5 {[%emt 0:00:00]} Nxe5 {[%emt 0:00:00]} 14. g3 {[%emt 0:00:00]} Re8 {
[%emt 0:00:00]} 15. Bg5 {[%emt 0:00:00]} Nxf3+ {[%emt 0:00:00]} 16. Bxf3 {
[%emt 0:00:00]} Be5 {[%emt 0:00:00]} 17. Rac1 {[%emt 0:00:00]} a6 {[%emt 0:00:
00]} 18. Bg2 {[%emt 0:00:00]} c5 {[%emt 0:00:00]} 19. Bxf6 {[%emt 0:00:00]}
Bxf6 {[%emt 0:00:00]} 20. Nd5 {[%emt 0:00:00]} Bxd5 {[%emt 0:00:00]} 21. exd5 {
[%emt 0:00:00]} c4 {[%emt 0:00:00]} 22. d6 {[%emt 0:00:00]} Ra7 {[%emt 0:00:06]
} 23. Rd5 Rd7 24. Rcd1 Re5 25. R5d2 g6 26. Bh3 Rd8 27. d7 Kg7 28. Bf1 Qc7 29.
h4 Be7 30. Qc3 Bf6 31. Qc2 Be7 32. Qc3 Bf6 33. Qf3 Rf5 {[%emt 0:00:00]} 34. Qe4
{[%emt 0:00:00]} 1/2-1/2

[Event "Gibraltar Masters 18th"]
[Site "Gibraltar"]
[Date "2020.01.23"]
[Round "3.15"]
[White "Kobo, Ori"]
[Black "Karthikeyan, Murali"]
[Result "1/2-1/2"]
[ECO "C79"]
[WhiteElo "2445"]
[BlackElo "2606"]
[PlyCount "91"]
[EventDate "2020.01.21"]
[EventType "swiss"]
[EventRounds "10"]
[EventCountry "GGB"]
[SourceTitle "BritBase"]
[Source "John Saunders"]
[SourceDate "2021.06.05"]
[SourceVersion "1"]
[SourceVersionDate "2021.06.05"]
[SourceQuality "1"]
[TimeControl "40/100:0"]
[WhiteClock "0:56:18"]
[BlackClock "1:11:45"]

1. e4 {[%emt 0:00:00]} e5 {[%emt 0:00:00]} 2. Nf3 {[%emt 0:00:00]} Nc6 {
[%emt 0:00:00]} 3. Bb5 {[%emt 0:00:00]} a6 {[%emt 0:00:00]} 4. Ba4 {[%emt 0:00:
00]} Nf6 {[%emt 0:00:00]} 5. O-O {[%emt 0:00:00]} d6 {[%emt 0:00:00]} 6. Bxc6+
{[%emt 0:00:00]} bxc6 {[%emt 0:00:00]} 7. d4 {[%emt 0:00:00]} exd4 {[%emt 0:00:
00]} 8. Nxd4 {[%emt 0:00:00]} c5 {[%emt 0:00:00]} 9. Nc6 {[%emt 0:00:00]} Qd7 {
[%emt 0:00:00]} 10. Na5 {[%emt 0:00:00]} Qb5 {[%emt 0:00:00]} 11. Qe1 {[%emt 0:
00:00]} Be6 {[%emt 0:00:00]} 12. f3 {[%emt 0:00:00]} Be7 {[%emt 0:00:00]} 13.
Na3 {[%emt 0:00:00]} Qb4 {[%emt 0:00:00]} 14. Nc6 {[%emt 0:00:00]} Qxe1 {
[%emt 0:00:00]} 15. Rxe1 {[%emt 0:00:02]} d5 16. Bg5 dxe4 17. fxe4 h6 18. Bh4
Bf8 19. b3 Ng4 20. h3 c4 21. Nxc4 Bc5+ 22. Kh1 g5 23. Bg3 h5 24. Re2 Bxc4 25.
bxc4 Rh6 26. Na5 h4 27. Be1 Rf6 28. Bc3 Rf2 29. Rae1 Rxe2 30. Rxe2 Nf2+ 31. Kh2
g4 32. hxg4 O-O-O 33. Nb3 Be3 34. Be1 Bf4+ 35. Kg1 Nxg4 36. Bxh4 Re8 37. Bf2 f5
38. g3 Bh6 39. e5 Rxe5 40. Rxe5 Nxe5 41. c5 f4 42. gxf4 Bxf4 43. Kf1 Kd7 44.
Ke2 Kc6 45. Bd4 Kb5 46. Bxe5 {[%emt 0:00:00]} 1/2-1/2

[Event "Gibraltar Masters 18th"]
[Site "Gibraltar"]
[Date "2020.01.23"]
[Round "3.16"]
[White "Basso, Pier Luigi"]
[Black "Abdumalik, Zhansaya"]
[Result "1-0"]
[ECO "A65"]
[WhiteElo "2600"]
[BlackElo "2471"]
[PlyCount "77"]
[EventDate "2020.01.21"]
[EventType "swiss"]
[EventRounds "10"]
[EventCountry "GGB"]
[SourceTitle "BritBase"]
[Source "John Saunders"]
[SourceDate "2021.06.05"]
[SourceVersion "1"]
[SourceVersionDate "2021.06.05"]
[SourceQuality "1"]
[TimeControl "40/100:0"]
[WhiteClock "0:06:18"]
[BlackClock "0:03:15"]

1. d4 {[%emt 0:00:00]} Nf6 {[%emt 0:00:00]} 2. c4 {[%emt 0:00:00]} g6 {[%emt 0:
00:00]} 3. f3 {[%emt 0:00:00]} c5 {[%emt 0:00:00]} 4. d5 {[%emt 0:00:00]} e6 {
[%emt 0:00:00]} 5. Nc3 {[%emt 0:00:00]} d6 {[%emt 0:00:00]} 6. e4 {[%emt 0:00:
00]} exd5 {[%emt 0:00:00]} 7. cxd5 {[%emt 0:00:00]} Bg7 {[%emt 0:00:00]} 8.
Nge2 {[%emt 0:00:00]} O-O {[%emt 0:00:00]} 9. Ng3 {[%emt 0:00:00]} h5 {[%emt 0:
00:00]} 10. Be2 {[%emt 0:00:00]} Nh7 {[%emt 0:00:00]} 11. Be3 {[%emt 0:00:00]}
Qe7 {[%emt 0:00:00]} 12. O-O {[%emt 0:00:00]} f5 {[%emt 0:00:00]} 13. Qd2 {
[%emt 0:00:00]} h4 {[%emt 0:00:00]} 14. Nh1 {[%emt 0:00:00]} a6 {[%emt 0:00:00]
} 15. Rae1 {[%emt 0:00:00]} b5 {[%emt 0:00:00]} 16. exf5 {[%emt 0:00:00]} gxf5
{[%emt 0:00:00]} 17. Nf2 {[%emt 0:00:00]} Nd7 {[%emt 0:00:00]} 18. Kh1 {
[%emt 0:00:00]} Ne5 {[%emt 0:00:00]} 19. Nh3 {[%emt 0:01:22]} Bd7 20. f4 {
[%emt 0:00:00]} Ng4 {[%emt 0:00:00]} 21. Bxc5 {[%emt 1:32:35]} dxc5 22. Bxg4
Qd6 23. Bf3 b4 24. Nd1 Rad8 25. Qf2 c4 26. Qxh4 c3 27. bxc3 bxc3 28. Ne3 Bb5
29. Rg1 Qf6 30. Ng5 Nxg5 31. fxg5 Qd4 32. Qh3 Bd3 33. g6 Rf6 34. d6 {[%emt 0:
00:00]} Be4 {[%emt 0:00:00]} 35. Bxe4 {[%emt 0:00:00]} Qxe4 {[%emt 0:00:00]}
36. Rgf1 {[%emt 0:00:00]} Qd3 {[%emt 0:00:00]} 37. Rd1 {[%emt 0:00:00]} Qe2 {
[%emt 0:00:00]} 38. Nxf5 {[%emt 0:00:00]} Kf8 {[%emt 0:00:00]} 39. Qxc3 {
[%emt 0:00:00]} 1-0

[Event "Gibraltar Masters 18th"]
[Site "Gibraltar"]
[Date "2020.01.23"]
[Round "3.17"]
[White "Batsiashvili, Nino"]
[Black "Wang, Hao"]
[Result "0-1"]
[ECO "A80"]
[WhiteElo "2456"]
[BlackElo "2758"]
[PlyCount "50"]
[EventDate "2020.01.21"]
[EventType "swiss"]
[EventRounds "10"]
[EventCountry "GGB"]
[SourceTitle "BritBase"]
[Source "John Saunders"]
[SourceDate "2021.06.05"]
[SourceVersion "1"]
[SourceVersionDate "2021.06.05"]
[SourceQuality "1"]
[TimeControl "40/100:0"]
[WhiteClock "0:55:05"]
[BlackClock "0:51:07"]

1. d4 {[%emt 0:00:00]} f5 {[%emt 0:00:00]} 2. Nf3 {[%emt 0:00:00]} Nf6 {
[%emt 0:00:00]} 3. Bg5 {[%emt 0:00:00]} e6 {[%emt 0:00:00]} 4. Nbd2 {[%emt 0:
00:00]} Be7 {[%emt 0:00:00]} 5. Bxf6 {[%emt 0:00:00]} Bxf6 {[%emt 0:00:00]} 6.
e4 {[%emt 0:00:00]} g6 {[%emt 0:00:00]} 7. c3 {[%emt 0:00:00]} O-O {[%emt 0:00:
00]} 8. Bd3 {[%emt 0:00:00]} b6 {[%emt 0:00:00]} 9. Qe2 {[%emt 0:00:00]} Bb7 {
[%emt 0:00:00]} 10. h4 {[%emt 0:00:00]} c5 {[%emt 0:00:00]} 11. e5 {[%emt 0:00:
00]} Bg7 {[%emt 0:00:00]} 12. h5 {[%emt 0:00:00]} cxd4 {[%emt 0:00:00]} 13.
Nxd4 {[%emt 0:00:00]} Nc6 {[%emt 0:01:51]} 14. Nxc6 Bxc6 15. f4 d6 16. hxg6
dxe5 17. Rxh7 Qf6 18. Qh5 Rfd8 19. Ne4 Bxe4 20. fxe5 Qe7 21. O-O-O Rxd3 22. Rh1
Rxc3+ 23. bxc3 Qa3+ 24. Kd2 Rd8+ 25. Ke3 Qxc3+ {[%emt 0:00:00]} 0-1

[Event "Gibraltar Masters 18th"]
[Site "Gibraltar"]
[Date "2020.01.23"]
[Round "3.18"]
[White "Vachier-Lagrave, Maxime"]
[Black "Baron, Tal"]
[Result "1-0"]
[ECO "A37"]
[WhiteElo "2770"]
[BlackElo "2529"]
[PlyCount "77"]
[EventDate "2020.01.21"]
[EventType "swiss"]
[EventRounds "10"]
[EventCountry "GGB"]
[SourceTitle "BritBase"]
[Source "John Saunders"]
[SourceDate "2021.06.05"]
[SourceVersion "1"]
[SourceVersionDate "2021.06.05"]
[SourceQuality "1"]
[TimeControl "40/100:0"]
[WhiteClock "0:56:18"]
[BlackClock "0:54:23"]

1. c4 {[%emt 0:00:00]} c5 {[%emt 0:00:00]} 2. g3 {[%emt 0:00:00]} g6 {[%emt 0:
00:00]} 3. Bg2 {[%emt 0:00:00]} Bg7 {[%emt 0:00:00]} 4. Nc3 {[%emt 0:00:00]}
Nc6 {[%emt 0:00:00]} 5. Nf3 {[%emt 0:00:00]} d6 {[%emt 0:00:00]} 6. O-O {
[%emt 0:00:00]} Bf5 {[%emt 0:00:00]} 7. h3 {[%emt 0:00:00]} Nf6 {[%emt 0:00:00]
} 8. d3 {[%emt 0:00:00]} O-O {[%emt 0:00:00]} 9. Be3 {[%emt 0:00:00]} a6 {
[%emt 0:00:00]} 10. Qd2 {[%emt 0:00:00]} Rb8 {[%emt 0:00:00]} 11. Bh6 {[%emt 0:
00:00]} Nd4 {[%emt 0:00:00]} 12. Nh4 {[%emt 0:00:00]} Bd7 {[%emt 0:00:00]} 13.
Bxg7 {[%emt 0:00:00]} Kxg7 {[%emt 0:00:00]} 14. e3 {[%emt 0:00:00]} Nf5 {
[%emt 0:00:00]} 15. Nf3 {[%emt 0:00:00]} e6 {[%emt 0:00:00]} 16. Ne4 {[%emt 0:
00:00]} Bc6 {[%emt 0:00:00]} 17. Qc3 {[%emt 0:00:00]} e5 {[%emt 0:00:00]} 18.
Ned2 {[%emt 0:00:00]} b5 {[%emt 0:00:00]} 19. b3 {[%emt 0:00:00]} Kg8 {[%emt 0:
00:00]} 20. Rfe1 {[%emt 0:00:00]} Re8 {[%emt 0:00:00]} 21. Rad1 {[%emt 0:00:00]
} Qb6 {[%emt 0:00:00]} 22. g4 {[%emt 0:00:00]} Ng7 {[%emt 0:00:00]} 23. d4 {
[%emt 0:00:00]} exd4 {[%emt 0:00:00]} 24. exd4 {[%emt 0:00:00]} Ne4 {[%emt 0:
00:00]} 25. Nxe4 {[%emt 0:00:00]} Bxe4 {[%emt 0:00:00]} 26. cxb5 {[%emt 0:08:
01]} Bxf3 27. Rxe8+ Rxe8 28. dxc5 dxc5 29. Qxf3 axb5 30. Qc6 Qa7 31. Rd7 Re1+
32. Bf1 Qb8 33. Rc7 Ne8 34. Rc8 Qe5 35. Kg2 Kg7 36. Qxc5 Qe4+ 37. f3 Qb1 38.
Qd4+ Kh6 39. h4 {[%emt 0:00:00]} 1-0

[Event "Gibraltar Masters 18th"]
[Site "Gibraltar"]
[Date "2020.01.23"]
[Round "3.20"]
[White "Sadhwani, Raunak"]
[Black "Navara, David"]
[Result "1/2-1/2"]
[ECO "B90"]
[WhiteElo "2522"]
[BlackElo "2717"]
[PlyCount "61"]
[EventDate "2020.01.21"]
[EventType "swiss"]
[EventRounds "10"]
[EventCountry "GGB"]
[SourceTitle "BritBase"]
[Source "John Saunders"]
[SourceDate "2021.06.05"]
[SourceVersion "1"]
[SourceVersionDate "2021.06.05"]
[SourceQuality "1"]
[TimeControl "40/100:0"]
[WhiteClock "1:40:54"]
[BlackClock "0:53:52"]

1. e4 {[%emt 0:00:00]} c5 {[%emt 0:00:00]} 2. Nf3 {[%emt 0:00:00]} d6 {[%emt 0:
00:00]} 3. d4 {[%emt 0:00:00]} cxd4 {[%emt 0:00:00]} 4. Nxd4 {[%emt 0:00:00]}
Nf6 {[%emt 0:00:00]} 5. Nc3 {[%emt 0:00:00]} a6 {[%emt 0:00:00]} 6. Be3 {
[%emt 0:00:00]} e5 {[%emt 0:00:00]} 7. Nf3 {[%emt 0:00:00]} Be7 {[%emt 0:00:00]
} 8. Bc4 {[%emt 0:00:00]} O-O {[%emt 0:00:00]} 9. O-O {[%emt 0:00:00]} Nc6 {
[%emt 0:00:00]} 10. Bb3 {[%emt 0:00:00]} Be6 {[%emt 0:00:00]} 11. Qe2 {[%emt 0:
00:00]} Na5 {[%emt 0:00:00]} 12. Rfd1 {[%emt 0:00:00]} Nxb3 {[%emt 0:00:00]}
13. axb3 {[%emt 0:00:00]} Qc7 {[%emt 0:00:00]} 14. Bg5 {[%emt 0:00:00]} Nh5 {
[%emt 0:00:00]} 15. Nxe5 {[%emt 0:00:00]} Bxg5 {[%emt 0:00:00]} 16. Qxh5 {
[%emt 0:00:00]} Bf6 {[%emt 0:00:00]} 17. Nf3 {[%emt 0:00:00]} Bxc3 {[%emt 0:00:
00]} 18. bxc3 {[%emt 0:00:00]} Qxc3 {[%emt 0:00:00]} 19. Nd4 {[%emt 0:00:00]}
Rac8 {[%emt 0:00:00]} 20. Qa5 {[%emt 0:00:00]} Rfd8 {[%emt 0:00:00]} 21. Qxc3 {
[%emt 0:00:00]} Rxc3 {[%emt 0:00:00]} 22. Rd2 {[%emt 0:00:00]} Kf8 {[%emt 0:00:
00]} 23. Ne2 {[%emt 0:00:00]} Rc5 {[%emt 0:00:00]} 24. c4 {[%emt 0:00:00]} b5 {
[%emt 0:00:00]} 25. Rxa6 {[%emt 0:00:00]} bxc4 {[%emt 0:00:00]} 26. bxc4 {
[%emt 0:00:00]} Bxc4 {[%emt 0:00:00]} 27. Ra1 {[%emt 0:00:00]} Bxe2 {[%emt 0:
00:00]} 28. Rxe2 {[%emt 0:00:00]} Rdc8 {[%emt 0:00:00]} 29. f3 {[%emt 0:00:00]}
d5 {[%emt 0:00:00]} 30. exd5 {[%emt 0:00:00]} Rxd5 {[%emt 0:00:00]} 31. Rae1 {
[%emt 0:00:00]} 1/2-1/2

[Event "Gibraltar Masters 18th"]
[Site "Gibraltar"]
[Date "2020.01.23"]
[Round "3.21"]
[White "Flom, Gabriel"]
[Black "Matlakov, Maxim"]
[Result "1/2-1/2"]
[ECO "E36"]
[WhiteElo "2510"]
[BlackElo "2698"]
[PlyCount "92"]
[EventDate "2020.01.21"]
[EventType "swiss"]
[EventRounds "10"]
[EventCountry "GGB"]
[SourceTitle "BritBase"]
[Source "John Saunders"]
[SourceDate "2021.06.05"]
[SourceVersion "1"]
[SourceVersionDate "2021.06.05"]
[SourceQuality "1"]
[TimeControl "40/100:0"]
[WhiteClock "1:31:15"]
[BlackClock "0:11:08"]

1. d4 {[%emt 0:00:00]} Nf6 {[%emt 0:00:00]} 2. c4 {[%emt 0:00:00]} e6 {[%emt 0:
00:00]} 3. Nc3 {[%emt 0:00:00]} Bb4 {[%emt 0:00:00]} 4. Qc2 {[%emt 0:00:00]} d5
{[%emt 0:00:00]} 5. a3 {[%emt 0:00:00]} Bxc3+ {[%emt 0:00:00]} 6. Qxc3 {
[%emt 0:00:00]} c5 {[%emt 0:00:00]} 7. dxc5 {[%emt 0:00:00]} d4 {[%emt 0:00:00]
} 8. Qg3 {[%emt 0:00:00]} Nc6 {[%emt 0:00:00]} 9. Nf3 {[%emt 0:00:00]} e5 {
[%emt 0:00:00]} 10. b4 {[%emt 0:00:00]} e4 {[%emt 0:00:00]} 11. Nd2 {[%emt 0:
00:00]} Be6 {[%emt 0:00:00]} 12. Bb2 {[%emt 0:00:00]} O-O {[%emt 0:00:00]} 13.
h4 {[%emt 0:00:00]} Re8 {[%emt 0:00:00]} 14. e3 {[%emt 0:00:00]} Nh5 {[%emt 0:
00:00]} 15. Qg5 {[%emt 0:00:00]} dxe3 {[%emt 0:04:24]} 16. fxe3 Qxg5 17. hxg5
Ng3 18. Rh4 a5 19. b5 Ne7 20. Rxe4 Nef5 21. Kf2 Nxe4+ 22. Nxe4 Rad8 23. g4 Bxc4
24. gxf5 Rxe4 25. Bd4 Bxf1 26. Rxf1 Rd5 27. Kf3 Re8 28. Kg4 Re4+ 29. Rf4 Re8
30. a4 Kf8 31. Kf3 Rc8 32. Ke4 Rdxc5 33. Bxc5+ Rxc5 34. Kd4 b6 35. e4 f6 36.
Rh4 Kg8 37. Rg4 Kf7 38. g6+ hxg6 39. Rxg6 Rc1 40. Rg3 Rd1+ 41. Kc4 Rd7 42. Rh3
g5 43. fxg6+ Kxg6 44. Rh8 Rd6 45. Rc8 Kf7 46. Rc6 Ke6 {[%emt 0:00:00]} 1/2-1/2

[Event "Gibraltar Masters 18th"]
[Site "Gibraltar"]
[Date "2020.01.23"]
[Round "3.22"]
[White "Adams, Michael"]
[Black "Barbosa, Evandro Amorim"]
[Result "1/2-1/2"]
[ECO "B47"]
[WhiteElo "2694"]
[BlackElo "2501"]
[PlyCount "233"]
[EventDate "2020.01.21"]
[EventType "swiss"]
[EventRounds "10"]
[EventCountry "GGB"]
[SourceTitle "BritBase"]
[Source "John Saunders"]
[SourceDate "2021.06.05"]
[SourceVersion "1"]
[SourceVersionDate "2021.06.05"]
[SourceQuality "1"]
[TimeControl "40/100:0"]
[WhiteClock "0:27:18"]
[BlackClock "0:39:22"]

1. e4 {[%emt 0:00:00]} c5 {[%emt 0:00:00]} 2. Nf3 {[%emt 0:00:00]} e6 {[%emt 0:
00:00]} 3. d4 {[%emt 0:00:00]} cxd4 {[%emt 0:00:00]} 4. Nxd4 {[%emt 0:00:00]}
Nc6 {[%emt 0:00:00]} 5. Nc3 {[%emt 0:00:00]} Qc7 {[%emt 0:00:00]} 6. Qd3 {
[%emt 0:00:00]} a6 {[%emt 0:00:00]} 7. Nxc6 {[%emt 0:00:00]} bxc6 {[%emt 0:00:
00]} 8. Qg3 {[%emt 0:00:00]} Qxg3 {[%emt 0:00:00]} 9. hxg3 {[%emt 0:00:00]} d5
{[%emt 0:00:00]} 10. g4 {[%emt 0:00:00]} Nf6 {[%emt 0:00:00]} 11. g5 {[%emt 0:
00:00]} Nd7 {[%emt 0:00:00]} 12. Bd3 {[%emt 0:00:00]} Nc5 {[%emt 0:00:00]} 13.
Be3 {[%emt 0:00:00]} a5 {[%emt 0:00:00]} 14. O-O-O {[%emt 0:00:00]} Nxd3+ {
[%emt 0:00:00]} 15. cxd3 {[%emt 0:00:00]} Ba6 {[%emt 0:00:00]} 16. Kc2 {
[%emt 0:00:00]} Be7 {[%emt 0:07:43]} 17. Rh5 f6 18. Rdh1 fxg5 19. Rxh7 Rxh7 20.
Rxh7 Kf7 21. Rh3 Kg6 22. Rg3 Kh5 23. Rh3+ Kg6 24. Rg3 Kh5 25. b3 Bb7 26. Na4 e5
27. Bc5 Bf6 28. Rh3+ Kg6 29. Bd6 g4 30. Rg3 Kh5 31. f3 gxf3 32. gxf3 Rd8 33.
Bc7 Ra8 34. Nb6 Re8 35. Nd7 Bc8 36. Nxf6+ gxf6 37. Bxa5 f5 38. Rg7 fxe4 39.
fxe4 Bg4 40. Rh7+ Kg6 41. Rc7 Re6 42. Be1 Bf3 43. Kd2 dxe4 44. Ke3 Bg2 45. dxe4
Rf6 46. Bc3 Rf3+ 47. Kd2 Rf2+ 48. Kd3 Rf3+ 49. Kc4 Re3 50. Rxc6+ Kf7 51. a4
Rxe4+ 52. Kb5 Re2 53. Rc7+ Ke6 54. a5 Rc2 55. Kb6 e4 56. Bd4 e3 57. Bxe3 Rb2
58. Bd4 Rxb3+ 59. Kc5 Rb1 60. Rg7 Bf1 61. a6 Rc1+ 62. Kb6 Rb1+ 63. Ka5 Rb5+ 64.
Ka4 Rd5 65. Rg6+ Ke7 66. Bc3 Rd7 67. Rg7+ Ke6 68. a7 Rd8 69. Rg6+ Kd5 70. Rg1
Bd3 71. Rd1 Kc4 72. Rc1 Kd5 73. Be1 Ra8 74. Rc7 Be4 75. Bg3 Ke6 76. Ka5 Rg8 77.
Rc3 Ba8 78. Kb6 Kd7 79. Rd3+ Kc8 80. Rc3+ Kd7 81. Rc7+ Ke6 82. Bf2 Bg2 83. Rh7
Rc8 84. Bc5 Rc6+ 85. Kb5 Rc8 86. Re7+ Kf6 87. Re3 Bc6+ 88. Kc4 Ba8 89. Re1 Bc6
90. Rd1 Ba8 91. Rd6+ Kf7 92. Kd4 Bh1 93. Rh6 Ba8 94. Bd6 Rg8 95. Ke5 Re8+ 96.
Kf4 Bd5 97. Kg5 Be4 98. Rf6+ Kg7 99. Rf2 Ba8 100. Rf1 Bg2 101. Rg1 Bc6 102.
Kf5+ Kf7 103. Be5 Bd7+ 104. Kf4 Bc6 105. Rc1 Bd5 106. Kf5 Ba8 107. Rc4 Bd5 108.
Rd4 Bc6 109. Rd6 Ba8 110. Rh6 Bd5 111. Rh7+ Kg8 112. Rg7+ Kf8 113. Rc7 Kg8 114.
Kg6 Be4+ 115. Kf6 Rf8+ 116. Ke6 Re8+ {[%emt 0:00:00]} 117. Kf6 {[%emt 0:00:00]}
1/2-1/2

[Event "Gibraltar Masters 18th"]
[Site "Gibraltar"]
[Date "2020.01.23"]
[Round "3.23"]
[White "Jones, Gawain C B"]
[Black "Raja, Harshit"]
[Result "1-0"]
[ECO "A14"]
[WhiteElo "2679"]
[BlackElo "2482"]
[PlyCount "89"]
[EventDate "2020.01.21"]
[EventType "swiss"]
[EventRounds "10"]
[EventCountry "GGB"]
[SourceTitle "BritBase"]
[Source "John Saunders"]
[SourceDate "2021.06.05"]
[SourceVersion "1"]
[SourceVersionDate "2021.06.05"]
[SourceQuality "1"]
[TimeControl "40/100:0"]
[WhiteClock "1:14:01"]
[BlackClock "0:35:34"]

1. c4 {[%emt 0:00:00]} Nf6 {[%emt 0:00:00]} 2. g3 {[%emt 0:00:00]} e6 {[%emt 0:
00:00]} 3. Bg2 {[%emt 0:00:00]} d5 {[%emt 0:00:00]} 4. Nf3 {[%emt 0:00:00]} Be7
{[%emt 0:00:00]} 5. O-O {[%emt 0:00:00]} O-O {[%emt 0:00:00]} 6. b3 {[%emt 0:
00:00]} d4 {[%emt 0:00:00]} 7. e3 {[%emt 0:00:00]} c5 {[%emt 0:00:00]} 8. Ne5 {
[%emt 0:00:00]} Nfd7 {[%emt 0:00:00]} 9. Nxd7 {[%emt 0:00:00]} Qxd7 {[%emt 0:
00:00]} 10. exd4 {[%emt 0:00:00]} Bf6 {[%emt 0:00:00]} 11. Nc3 {[%emt 0:00:00]}
Bxd4 {[%emt 0:00:00]} 12. Rb1 {[%emt 0:00:00]} Nc6 {[%emt 0:00:00]} 13. Ne2 {
[%emt 0:00:00]} Bf6 {[%emt 0:00:00]} 14. Ba3 {[%emt 0:00:00]} Be7 {[%emt 0:00:
00]} 15. d4 {[%emt 0:00:00]} cxd4 {[%emt 0:00:00]} 16. Bxe7 {[%emt 0:00:00]}
Qxe7 {[%emt 0:00:00]} 17. Nxd4 {[%emt 0:00:00]} Nxd4 {[%emt 0:00:00]} 18. Qxd4
{[%emt 0:00:00]} Rd8 {[%emt 0:00:00]} 19. Qe5 {[%emt 0:00:00]} f6 {[%emt 0:00:
00]} 20. Qe3 {[%emt 0:00:00]} e5 {[%emt 0:00:00]} 21. Rbd1 {[%emt 0:00:00]}
Rxd1 {[%emt 0:00:00]} 22. Rxd1 {[%emt 0:00:00]} Be6 {[%emt 0:00:00]} 23. f4 {
[%emt 0:03:26]} Bf7 24. fxe5 fxe5 25. Re1 Qb4 26. Rf1 Qe7 27. Be4 a5 28. Qf3
Ra6 29. Bxh7+ Kxh7 30. Qxf7 Qxf7 31. Rxf7 Rb6 32. Kf2 a4 33. bxa4 Rc6 34. Rxb7
Rxc4 35. a5 Rc2+ 36. Ke3 Rxa2 37. Rb5 Rxh2 38. Rxe5 Kg6 39. Kd4 Kf6 40. Rc5 Rg2
41. a6 Ra2 42. Rc6+ Kf5 43. Kc5 Kg4 44. Kb6 g5 45. Rc5 {[%emt 0:00:00]} 1-0

[Event "Gibraltar Masters 18th"]
[Site "Gibraltar"]
[Date "2020.01.23"]
[Round "3.24"]
[White "Saric, Ivan"]
[Black "Gagare, Shardul"]
[Result "1/2-1/2"]
[ECO "C95"]
[WhiteElo "2655"]
[BlackElo "2481"]
[PlyCount "75"]
[EventDate "2020.01.21"]
[EventType "swiss"]
[EventRounds "10"]
[EventCountry "GGB"]
[SourceTitle "BritBase"]
[Source "John Saunders"]
[SourceDate "2021.06.05"]
[SourceVersion "1"]
[SourceVersionDate "2021.06.05"]
[SourceQuality "1"]
[TimeControl "40/100:0"]
[WhiteClock "0:37:17"]
[BlackClock "0:56:15"]

1. e4 {[%emt 0:00:00]} e5 {[%emt 0:00:00]} 2. Nf3 {[%emt 0:00:00]} Nc6 {
[%emt 0:00:00]} 3. Bb5 {[%emt 0:00:00]} a6 {[%emt 0:00:00]} 4. Ba4 {[%emt 0:00:
00]} Nf6 {[%emt 0:00:00]} 5. O-O {[%emt 0:00:00]} Be7 {[%emt 0:00:00]} 6. Re1 {
[%emt 0:00:00]} b5 {[%emt 0:00:00]} 7. Bb3 {[%emt 0:00:00]} d6 {[%emt 0:00:00]}
8. c3 {[%emt 0:00:00]} O-O {[%emt 0:00:00]} 9. h3 {[%emt 0:00:00]} Nb8 {
[%emt 0:00:00]} 10. d4 {[%emt 0:00:00]} Nbd7 {[%emt 0:00:00]} 11. Nbd2 {
[%emt 0:00:00]} Bb7 {[%emt 0:00:00]} 12. Bc2 {[%emt 0:00:00]} Re8 {[%emt 0:00:
00]} 13. Nf1 {[%emt 0:00:00]} Bf8 {[%emt 0:00:00]} 14. Ng3 {[%emt 0:00:00]} g6
{[%emt 0:00:00]} 15. a4 {[%emt 0:00:00]} Bg7 {[%emt 0:00:00]} 16. Bd3 {[%emt 0:
00:00]} d5 {[%emt 0:00:00]} 17. Bg5 {[%emt 0:00:00]} dxe4 {[%emt 0:00:00]} 18.
Bxe4 {[%emt 0:00:00]} c6 {[%emt 0:00:00]} 19. dxe5 {[%emt 0:00:00]} Nxe5 {
[%emt 0:00:00]} 20. Qxd8 {[%emt 0:00:00]} Raxd8 {[%emt 0:00:00]} 21. axb5 {
[%emt 0:00:00]} axb5 {[%emt 0:00:00]} 22. Nd4 {[%emt 0:00:00]} h6 {[%emt 0:00:
00]} 23. Bxf6 {[%emt 0:00:00]} Bxf6 {[%emt 0:00:00]} 24. Nxb5 {[%emt 0:00:00]}
Nc4 {[%emt 0:02:10]} 25. Nd4 Bxd4 26. cxd4 Rxd4 27. Ra4 c5 28. Rc1 Bxe4 29.
Raxc4 Rxc4 30. Rxc4 Bd3 31. Rxc5 Rb8 32. Rd5 Bc2 33. Rd2 Rxb2 34. Kh2 Ra2 35.
Ne2 Bb1 36. Rd8+ Kg7 37. Nc3 Rb2 {[%emt 0:00:00]} 38. Nxb1 {[%emt 0:00:00]}
1/2-1/2